fUSD/lending_fUSD_20240628
["ID","MTS","AMOUNT","RATE_DAILY","PERIOD"]
[330509602,1719538235577,-3058.78,0.00021917,3]
[330509603,1719538235586,-1237.42,0.00021917,3]
[330509604,1719538235598,-1183.43,0.00021917,3]
[330509605,1719538235609,-2377.9,0.00021917,3]
[330509606,1719538235618,-587.43,0.00021917,3]
[330509607,1719538235629,-4527.67,0.00021917,3]
[330509608,1719538235642,-1841.32,0.00021917,3]
[330509609,1719538235651,-2141.63,0.00021917,3]
[330509610,1719538235659,-500.0,0.00021917,3]
[330509611,1719538235667,-500.0,0.00021917,3]
[330509612,1719538235676,-626.36,0.00021917,3]
[330509613,1719538235685,-500.0,0.00021917,3]
[330509614,1719538235694,-2803.06,0.00021917,3]
[330509615,1719538235703,-5023.21,0.00021917,3]
[330509616,1719538235713,-1167.67,0.00021917,3]
[330509617,1719538235725,-3152.28,0.00021917,3]
[330509618,1719538235734,-500.0,0.00021917,3]
[330509619,1719538235744,-500.0,0.00021917,3]
[330509620,1719538235753,-500.0,0.00021917,3]
[330509621,1719538235764,-500.0,0.00021917,3]
[330509622,1719538235773,-1036.18,0.00021917,3]
[330509623,1719538235782,-1037.73,0.00021917,3]
[330509624,1719538235791,-1777.15,0.00021917,3]
[330509625,1719538235801,-1537.88,0.00021917,3]
[330509626,1719538235810,-500.0,0.00021917,3]
[330509627,1719538235819,-500.0,0.00021917,3]
[330509628,1719538235828,-629.58,0.00021917,3]
[330509629,1719538235837,-2888.99,0.00021917,3]
[330509630,1719538235847,-500.0,0.00021917,3]
[330509631,1719538235856,-4027.31,0.00021917,3]
[330509632,1719538235865,-1769.22,0.00021917,3]
[330509633,1719538235874,-794.48,0.00021917,3]
[330509634,1719538235884,-822.16,0.00021917,3]
[330509635,1719538235893,-639.88,0.00021917,3]
[330509636,1719538235902,-500.0,0.00021917,3]
[330509637,1719538235911,-4643.56,0.00021917,3]
[330509638,1719538235921,-15188.64,0.00021917,3]
[330509639,1719538235930,-1974.62,0.00021917,3]
[330509640,1719538235939,-1086.11,0.00021917,3]
[330509641,1719538235948,-549.41,0.00021917,3]
[330509642,1719538235958,-864.97,0.00021917,3]
[330509643,1719538235968,-500.0,0.00021917,3]
[330509644,1719538235978,-500.0,0.00021917,3]
[330509645,1719538235990,-666.19,0.00021917,3]
[330509646,1719538236000,-1895.32,0.00021917,3]
[330509647,1719538236010,-6831.43,0.00021917,3]
[330509648,1719538236019,-2593.68,0.00021917,3]
[330509649,1719538236031,-1772.19,0.00021917,3]
[330509650,1719538236041,-1872.92,0.00021917,3]
[330509651,1719538236053,-500.0,0.00021917,3]
[330509652,1719538236063,-1032.41,0.00021917,3]
[330509653,1719538236073,-500.0,0.00021917,3]
[330509654,1719538236083,-1037.6,0.00021917,3]
[330509655,1719538236092,-1016.34,0.00021917,3]
[330509656,1719538236103,-5914.63,0.00021917,3]
[330509657,1719538236113,-3771.76,0.00021917,3]
[330509658,1719538236122,-1467.28,0.00021917,3]
[330509659,1719538236131,-42764.50098669,0.00021917,3]
[330509660,1719538236153,-20308.86517316,0.00021917,3]
[330509661,1719538236164,-281.19172138,0.00021917,3]
[330509662,1719538236175,-600.0,0.00021917,3]
[330509663,1719538236236,-2978.55211877,0.00021917,3]
[330509664,1719538236246,-416.84138123,0.00021917,3]
[330509665,1719538236260,-83.15861877,0.00021917,3]
[330509666,1719538236269,-530.26,0.00021917,3]
[330509667,1719538236279,-500.0,0.00021917,3]
[330509668,1719538236290,-500.0,0.00021917,3]
[330509669,1719538236300,-510.95309845,0.00021917,3]
[330509670,1719538236313,-998.11690155,0.00021917,3]
[330509671,1719538236321,-343.64421805,0.00021917,3]
[330509672,1719538236332,-2710.87578195,0.00021917,3]
[330509673,1719538236341,-1796.98,0.00021917,3]
[330509674,1719538236350,-10688.17,0.00021917,3]
[330509675,1719538236359,-496.10170732,0.00021917,3]
[330509676,1719538236371,-3.89829268,0.00021917,3]
[330509677,1719538236381,-2566.48,0.00021917,3]
[330509678,1719538236391,-4799.59,0.00021917,3]
[330509679,1719538236400,-711.69,0.00021917,3]
[330509680,1719538236410,-556.44,0.00021917,3]
[330509681,1719538236419,-500.0,0.00021917,3]
[330509682,1719538236428,-172.80069001,0.00021917,3]
[330509683,1719538236440,-572.88577079,0.00021917,3]
[330509763,1719538239522,-1538.89408276,0.00017999,2]
[330509765,1719538239534,-1533.26014763,0.00017999,2]
[330509768,1719538239550,-207.4982641,0.00018739,2]
[330509770,1719538239563,-513.36612043,0.00018739,2]
[330509772,1719538239573,-269.283,0.00021479,2]
[330509774,1719538239583,-254.7344,0.00021717,2]
[330509776,1719538239593,-8464.63661336,0.00021877,2]
[330509778,1719538239604,-711.31606781,0.00021877,2]
[330509780,1719538239614,-406.0935392,0.00021917,3]
[330509782,1719538239626,-500.0,0.00021917,3]
[330509784,1719538239637,-89.49587035,0.00021917,3]
[330509786,1719538239649,-217.0378403,0.00021917,3]
[330509788,1719538239658,-500.0,0.00021917,3]
[330509790,1719538239668,-12.13733373,0.00021917,3]
[330509793,1719538239679,-475.82133345,0.00021917,3]
[330509795,1719538239692,-12.04133282,0.00021917,3]
[330509797,1719538239703,-500.0,0.00021917,3]
[330509799,1719538239713,-500.0,0.00021917,3]
[330509801,1719538239724,-3034.46,0.00021917,3]
[330509803,1719538239735,-500.0,0.00021917,3]
[330509805,1719538239744,-151.0,0.00021917,2]
[330509807,1719538239755,-183.749541,0.00021917,2]
[330509809,1719538239765,-1522.03,0.00021917,3]
[330509811,1719538239776,-1846.29,0.00021917,3]
[330509813,1719538239786,-532.85,0.00021917,3]
[330509815,1719538239797,-1136.73,0.00021917,3]
[330509817,1719538239808,-6104.44,0.00021917,3]
[330509819,1719538239820,-556.48547453,0.00021917,2]
[330509821,1719538239830,-875.39,0.00021917,3]
[330509823,1719538239842,-1247.75033968,0.00021917,3]
[330509852,1719538240126,-582.19966032,0.00021917,3]
[330509854,1719538240136,-89.45335526,0.00021917,2]
[330509917,1719538240752,-61.54664474,0.00021917,2]
[330509919,1719538240762,-1274.310069,0.00021917,3]
[330509922,1719538240773,-465.309931,0.00021917,3]
[330509923,1719538240782,-231.07006903,0.00021917,3]
[330510160,1719538243054,-268.92993097,0.00021917,3]
[330510164,1719538243064,-3843.94860159,0.00021917,3]
[330510203,1719538243322,163.15106508,0.00016215,2]
[330510229,1719538243512,159.21,0.00026,120]
[330510326,1719538246480,-1310.258,0.00020928,2]
[330510327,1719538246490,-242.792,0.00021917,3]
[330510328,1719538246502,-621.90434097,0.00021917,3]
[330510331,1719538251369,-150.0,0.00016687,2]
[330510332,1719538251563,-13.15106507,0.00016687,2]
[330510333,1719538251802,136.84893493,0.00013735,2]
[330510334,1719538251824,150.0,0.00013735,2]
[330510335,1719538251848,150.0,0.00013735,2]
[330510336,1719538251882,150.0,0.00013735,2]
[330510337,1719538251906,150.0,0.00013735,2]
[330510338,1719538251931,6752.03105431,0.00013735,2]
[330510339,1719538252112,150.0,0.00013735,2]
[330510340,1719538252135,150.0,0.00013735,2]
[330510341,1719538252158,175.74301768,0.00013735,2]
[330510342,1719538252181,4524.25698232,0.00013735,2]
[330510343,1719538252444,163.15106507,0.00013735,2]
[330510344,1719538252492,4836.84893493,0.00013735,2]
[330510359,1719538300433,298.86111216,0.00013735,2]
[330510361,1719538335807,192.24421655,0.00013735,2]
[330510362,1719538395296,1028.538862,0.00025791,120]
[330510363,1719538424755,100399.65043859,0.00014,2]
[330510364,1719538426257,-685.3792876,0.00014,2]
[330510365,1719538427747,-775.74301768,0.00014,2]
[330510366,1719538429516,-750.00000001,0.00014,2]
[330510367,1719538431233,-176.30213014,0.00014,2]
[330510368,1719538450283,1664.52282522,0.00011197,2]
[330510369,1719538475165,-14697.25010126,0.0001387,2]
[330510370,1719538475192,-60398.2701853,0.00014,2]
[330510372,1719538596500,150.0,0.00014,2]
[330510373,1719538596522,150.0,0.00014,2]
[330510374,1719538596543,150.0,0.00014,2]
[330510375,1719538596565,150.0,0.00014,2]
[330510376,1719538596588,150.0,0.00014,2]
[330510377,1719538596609,150.0,0.00014,2]
[330510378,1719538597049,552.6847755,0.00014,2]
[330510379,1719538597762,7014.4109747,0.00013,2]
[330510380,1719538606682,1296.96862716,0.0001251,2]
[330510382,1719538690761,150.0,0.0001251,2]
[330510383,1719538690782,109.55461446,0.0001251,2]
[330510384,1719538705507,40.44538554,0.0001251,2]
[330510385,1719538705528,150.0,0.0001251,2]
[330510386,1719538705550,150.0,0.0001251,2]
[330510387,1719538705571,150.0,0.0001251,2]
[330510388,1719538705592,150.0,0.0001251,2]
[330510389,1719538705613,259.55461446,0.0001251,2]
[330510392,1719538804947,1375.74301768,0.00013673,2]
[330510393,1719538845246,2707.34555662,0.00013999,2]
[330510396,1719539140555,527.98296862,0.00013999,2]
[330510400,1719539149036,152.0,0.00014,2]
[330510416,1719539268675,663.91414511,0.00013999,2]
[330510417,1719539295089,218.57132771,0.00013999,2]
[330510418,1719539322629,236.01992372,0.00013999,2]
[330510419,1719539338444,24745.57619059,0.00013999,2]
[330510477,1719539373616,155.39498368,0.00013999,2]
[330510493,1719539432344,-155.33135811,0.00014499,2]
[330510495,1719539432354,-451.43365919,0.00014499,2]
[330510497,1719539432363,-284.27079997,0.00014966,2]
[330510499,1719539432372,-155.37459033,0.00014966,2]
[330510501,1719539432382,-299.39398573,0.00015166,2]
[330510503,1719539432391,-502.97784519,0.00015166,2]
[330510505,1719539432401,-150.0,0.0001526,2]
[330510507,1719539432410,-265.11966628,0.00015535,2]
[330510509,1719539432420,-718.09,0.00016186,2]
[330510511,1719539432429,-7459.57071544,0.00016808,2]
[330510512,1719539432438,-300.0,0.00017259,2]
[330510514,1719539432447,-1535.38926438,0.0001726,2]
[330510516,1719539432458,-5000.0,0.00017533,2]
[330510517,1719539432467,-499.99,0.00017808,2]
[330510518,1719539432476,-3072.15423039,0.00017889,2]
[330510519,1719539432487,-175.51,0.00018249,2]
[330510520,1719539432498,-250.0,0.00018278,2]
[330510521,1719539432507,-250.0,0.00018338,2]
[330510522,1719539432516,-190.66,0.00018379,2]
[330510523,1719539432527,-718.09,0.0001845,2]
[330510524,1719539432536,-2751.0,0.00018466,2]
[330510525,1719539432545,-507.93,0.00018564,2]
[330510526,1719539432555,-488.47,0.00018566,2]
[330510527,1719539432564,-10000.0,0.00018612,2]
[330510528,1719539432573,-2254.84,0.00018628,2]
[330510529,1719539432583,-1763.48291196,0.00018649,2]
[330510530,1719539432592,-1628.98358933,0.00018759,2]
[330510531,1719539432601,-1628.98358933,0.00018759,2]
[330510532,1719539432611,-720.86438453,0.00018759,2]
[330510533,1719539432620,-177.64,0.00018786,2]
[330510534,1719539432630,-1000.0,0.00018835,2]
[330510535,1719539432639,-1000.0,0.00018835,2]
[330510536,1719539432648,-155.17471396,0.00018864,2]
[330510537,1719539432657,-366.00199876,0.00018864,2]
[330510538,1719539432666,-622.28574283,0.00018864,2]
[330510539,1719539432675,-155.50596887,0.00018899,2]
[330510540,1719539432685,-155.27448428,0.00018899,2]
[330510541,1719539432694,-164.12099534,0.00018899,2]
[330510542,1719539432703,-155.29010385,0.00018899,2]
[330510543,1719539432712,-158.74054922,0.00018919,2]
[330510544,1719539432722,-269.47073967,0.00018919,2]
[330510545,1719539432731,-201.954167,0.00018999,2]
[330510546,1719539432740,-3504.47257509,0.000191,3]
[330510547,1719539432752,-7848.52742491,0.000191,3]
[330510548,1719539432765,-158.95381059,0.00019177,2]
[330510549,1719539432776,-250.0,0.00019178,2]
[330510550,1719539432785,-226.99073299,0.0001935,2]
[330510551,1719539432795,-225.42,0.00019486,2]
[330510552,1719539432804,-488.47,0.00019494,2]
[330510553,1719539432814,-11754.0,0.000196,5]
[330510554,1719539432824,-365.58816224,0.00019725,2]
[330510555,1719539432833,-165.65028124,0.00019863,2]
[330510556,1719539432843,-521.69920821,0.00019863,2]
[330510557,1719539432854,-10475.19883426,0.00019997,2]
[330510558,1719539432864,-254.0,0.00020076,2]
[330510559,1719539432874,-172.81,0.00020358,2]
[330510560,1719539432883,-488.47,0.00020422,2]
[330510561,1719539432896,-167.06,0.00020448,2]
[330510562,1719539432905,-7340.76214499,0.0002069,2]
[330510563,1719539432914,-565.3778,0.0002069,2]
[330510564,1719539432922,-718.09,0.00020714,2]
[330510565,1719539432931,-461.33,0.0002078,3]
[330510566,1719539432940,-461.28,0.0002078,3]
[330510567,1719539432950,-17839.11615154,0.0002079,2]
[330510569,1719539433004,-13754.97495041,0.0002079,2]
[330510572,1719539433015,-12616.0,0.0002079,2]
[330510574,1719539433027,-9899.24756434,0.0002079,2]
[330510587,1719539438503,-155.38209502,0.00016315,2]
[330510588,1719539438513,-241.84937683,0.00016808,2]
[330510589,1719539438525,-125.17131273,0.00016808,2]
[330510590,1719539438535,-1267.3769655,0.00018649,2]
[330510591,1719539438545,-1628.98358933,0.00018717,2]
[330510592,1719539438555,-276.14588648,0.00018864,2]
[330510593,1719539438565,-2000.0,0.000205,2]
[330510594,1719539438574,-4794.06331929,0.0002079,2]
[330510595,1719539438587,-612.56,0.0002079,2]
[330510596,1719539438767,-2204.3274248,0.00015479,2]
[330510597,1719539438777,-9102.76138433,0.0002079,2]
[330510598,1719539438787,-500.0,0.0002079,2]
[330510599,1719539438797,-1000.0,0.000208,2]
[330510600,1719539438807,-1000.0,0.000208,2]
[330510601,1719539438816,-770.31739126,0.000208,3]
[330510602,1719539438826,-3216.26469591,0.000208,2]
[330510603,1719539438837,-161.72325824,0.000208,2]
[330510604,1719539438847,-5819.74869828,0.000208,2]
[330510605,1719539438857,-324.56775538,0.000208,2]
[330510606,1719539438867,-161.72325824,0.00020833,2]
[330510607,1719539438876,-151.0,0.00020836,2]
[330510608,1719539438886,-225.42,0.00020856,2]
[330510609,1719539438896,-161.72325824,0.00020867,2]
[330510610,1719539438905,-7340.76214493,0.0002087,2]
[330510611,1719539438915,-507.93,0.00020885,2]
[330510612,1719539438925,-188947.48149,0.0002089,2]
[330510613,1719539438935,-171.9,0.0002089,2]
[330510614,1719539438944,-200.03985423,0.0002089,2]
[330510615,1719539438954,-37172.50938624,0.000209,2]
[330510616,1719539440361,-60362.32381376,0.000209,2]
[330510618,1719539440370,-121397.7684,0.000209,2]
[330510619,1719539440380,-2509.6978,0.000209,2]
[330510620,1719539440389,-203.29321897,0.000209,2]
[330510621,1719539440399,-184.60523432,0.000209,2]
[330510622,1719539440408,-1353.81126821,0.000209,2]
[330510623,1719539440418,-161.72325824,0.000209,2]
[330510624,1719539440427,-241.71059874,0.000209,2]
[330510625,1719539440436,-204.00209395,0.000209,2]
[330510626,1719539440446,-825.47074981,0.000209,2]
[330510627,1719539440456,-831.711,0.00020928,2]
[330510628,1719539440465,-162.436,0.00020928,2]
[330510629,1719539440474,-151.0,0.00020928,2]
[330510630,1719539440483,-150.381,0.00020928,2]
[330510631,1719539440493,-150.158,0.00020928,2]
[330510632,1719539440504,-5819.74869823,0.00020945,2]
[330510633,1719539440513,-693.63380137,0.00020954,2]
[330510634,1719539440524,-68618.72336991,0.00020964,2]
[330510635,1719539440546,-693.63380137,0.00020976,2]
[330510636,1719539440556,-192.21176548,0.00020978,4]
[330510637,1719539440566,-3468.16900685,0.0002098,2]
[330510638,1719539440576,-190.78,0.0002098,30]
[330510639,1719539440586,-2080.90140411,0.0002098,2]
[330510640,1719539440596,-26271.0,0.00020986,2]
[330510641,1719539440606,-7313.0,0.00020986,2]
[330510642,1719539440615,-4161.80280822,0.0002099,2]
[330510643,1719539440940,-150.5,0.0002099,30]
[330510644,1719539440957,-151.0,0.0002099,2]
[330510645,1719539440966,-242.905124,0.0002099,2]
[330510646,1719539440976,-151.0,0.0002099,2]
[330510647,1719539440985,-188.151008,0.0002099,2]
[330510648,1719539440994,-151.0,0.0002099,2]
[330510649,1719539441003,-151.0,0.0002099,2]
[330510650,1719539441013,-151.0,0.0002099,2]
[330510651,1719539441022,-151.0,0.0002099,2]
[330510652,1719539441031,-201.64698393,0.0002099,7]
[330510653,1719539441041,-200.03985423,0.0002099,2]
[330510654,1719539441050,-174.25941476,0.00021,2]
[330510655,1719539441060,-10169.5674402,0.00021,2]
[330510656,1719539441069,-76062.66867291,0.00021,7]
[330510657,1719539441081,-1286.6437952,0.00021,7]
[330510658,1719539441092,-41320.49283741,0.00021,7]
[330510659,1719539441103,-174799.73271344,0.00021,7]
[330510660,1719539441115,-133851.62286798,0.00021,7]
[330510661,1719539441193,-1043.96164666,0.00021,7]
[330510662,1719539441204,-795.6285858,0.00021,7]
[330510720,1719539446457,-164.42254988,0.00015535,2]
[330510721,1719539446466,-707.32745012,0.00016968,2]
[330510722,1719539446754,-237.27629221,0.00016968,2]
[330510723,1719539446764,-707.06499432,0.00021,7]
[330510792,1719540632882,-163.85,0.00015443,2]
[330510793,1719540632892,-440.0,0.000171,5]
[330510794,1719540632901,-197.51554768,0.00017242,2]
[330510795,1719540632912,-482.25445232,0.00017242,2]
[330510796,1719540632922,-835.13568617,0.00018759,2]
[330510797,1719540632932,-300.0,0.00018834,2]
[330510798,1719540632942,-3072.15423039,0.00018835,2]
[330510799,1719540632951,-269.96146413,0.00018864,2]
[330510800,1719540632961,-226.99073299,0.00018899,2]
[330510801,1719540632971,-177.64,0.00018915,2]
[330510802,1719540632983,-267.73423432,0.00018919,2]
[330510803,1719540632994,-250.0,0.00018992,2]
[330510804,1719540633005,-250.0,0.00019178,2]
[330510805,1719540633019,-1127.42,0.00019294,2]
[330510806,1719540633028,-679.77,0.00019506,2]
[330510807,1719540633038,-195.38,0.00019521,2]
[330510808,1719540633048,-250.0,0.00019566,2]
[330510809,1719540633058,-157.0451,0.00019897,2]
[330510810,1719540633068,-791.91,0.00020128,2]
[330510811,1719540633079,-152.72,0.00020495,2]
[330510812,1719540633088,-195.38,0.00020497,2]
[330510813,1719540633098,-324.0,0.000205,2]
[330510814,1719540633108,-200.0,0.000205,2]
[330510815,1719540633118,-133.41553265,0.000205,2]
[330510816,1719540633130,-628.58446735,0.000205,2]
[330510817,1719540633140,-492.0,0.000205,2]
[330510818,1719540633152,-420.0,0.00020533,2]
[330510819,1719540633162,-5895.54114483,0.0002059,2]
[330510820,1719540633172,-309.76,0.0002068,3]
[330510821,1719540633182,-8489.05892668,0.0002069,2]
[330510822,1719540633193,-1798.17271157,0.0002069,2]
[330510823,1719540633205,-750.93154305,0.0002069,2]
[330510825,1719540633216,-9147.59323782,0.0002069,2]
[330510827,1719540633228,-387.99999996,0.0002069,2]
[330510829,1719540633241,-58836.33698092,0.0002069,2]
[330510831,1719540633251,-54894.978696,0.0002069,2]
[330510833,1719540633260,-4364.81152369,0.0002069,2]
[330510834,1719540633270,-324.56775537,0.0002069,2]
[330510835,1719540633280,-5895.54114478,0.00020771,2]
[330510836,1719540633289,-100000.0,0.0002079,2]
[330510837,1719540633300,-60340.81221269,0.0002079,2]
[330510847,1719540639041,-163.15106508,0.000167,2]
[330510848,1719540639051,-224.55016778,0.0002079,2]
[330510849,1719540639063,-65354.10844451,0.0002079,2]
[330510854,1719540639146,-701.89106013,0.0002079,2]
[330510855,1719540639158,-22256.41329664,0.0002079,2]
[330510859,1719540640577,-538.09717153,0.0002079,2]
[330510860,1719540640907,-6385.84057401,0.0002079,2]
[330510861,1719540640918,-775.77409809,0.0002079,2]
[330510862,1719540640929,-1276.72847377,0.0002079,2]
[330510863,1719540640940,-13857.20132762,0.0002079,2]
[330510864,1719540640952,-9613.92971346,0.0002079,2]
[330510865,1719540640963,-5736.23245977,0.0002079,2]
[330510866,1719540640972,-2754.02169446,0.0002079,2]
[330510867,1719540640981,-172.81,0.00020844,2]
[330510868,1719540640991,-2903.80237504,0.00020851,2]
[330510869,1719540641003,-659.92992394,0.00020851,2]
[330510870,1719540641015,-409.45999997,0.00020851,2]
[330510871,1719540641027,-391.61922472,0.00020851,2]
[330510872,1719540641036,-4216.78077528,0.00020876,2]
[330510873,1719540641048,-910.0,0.00020876,2]
[330510874,1719540641059,-1022.04087,0.00020876,2]
[330510875,1719540641070,-3107.12544579,0.00020876,2]
[330510876,1719540641081,-503.61695748,0.00020876,2]
[330510877,1719540641399,-4959.14632,0.00020876,2]
[330510880,1719540641537,-163.15106507,0.00016921,2]
[330510882,1719540641547,-10291.39893493,0.00020876,2]
[330510964,1719540643704,-6810.30848686,0.00020876,2]
[330510968,1719540643716,-501.77587846,0.00020876,2]
[330510970,1719540643967,-22572.78502712,0.00020876,2]
[330510971,1719540643977,-215.0,0.000209,2]
[330510972,1719540643987,-273.02974321,0.000209,2]
[330510973,1719540643996,-9485.60338192,0.000209,2]
[330510974,1719540644008,-776.01999628,0.000209,2]
[330510975,1719540644022,-828.90081964,0.000209,2]
[330510976,1719540644034,-2160.88984424,0.000209,2]
[330510977,1719540644046,-527.58472934,0.000209,2]
[330511009,1719540647647,-163.15106507,0.00017142,2]
[330511010,1719540647659,-107.31176093,0.000209,2]
[330511011,1719540647670,-1748.9835148,0.000209,2]
[330511012,1719540647682,-2085.163727,0.000209,2]
[330511015,1719541219899,367.4,0.00025752,120]
[330511043,1719541772108,24702.13687985,0.00013999,2]
[330511051,1719541832242,-333.03179549,0.00014799,2]
[330511052,1719541832251,-168.04820451,0.00014899,2]
[330511053,1719541832262,-510.3000105,0.00014899,2]
[330511054,1719541832273,-726.48604474,0.00014899,2]
[330511055,1719541832284,-388.88750137,0.00014899,2]
[330511063,1719541832572,-1000.0,0.00014899,2]
[330511064,1719541832583,-278.43246927,0.00014899,2]
[330511065,1719541832593,-1515.48355314,0.00015535,2]
[330511066,1719541832604,-311.79764,0.00015535,2]
[330511067,1719541832615,-2473.7,0.00015535,2]
[330511071,1719541837996,-3072.15423039,0.00014499,2]
[330511073,1719541838006,-3113.82864553,0.00015535,2]
[330511076,1719541838020,-633.84,0.00015535,2]
[330511078,1719541838035,-874.08910746,0.00015535,2]
[330511080,1719541838047,-1000.74176665,0.00015535,2]
[330511082,1719541838059,-695.65914518,0.00015535,2]
[330511084,1719541838070,-7438.25184872,0.00016315,2]
[330511086,1719541838079,-758.57,0.00016365,2]
[330511088,1719541838089,-13668.09805655,0.00016968,2]
[330511090,1719541838103,-4572.78453988,0.00016968,2]
[330511093,1719541838115,-4621.52324931,0.00016968,2]
[330511095,1719541838127,-1827.09051515,0.00016968,2]
[330511097,1719541838136,-944.60374233,0.00016968,2]
[330511098,1719541838145,-2271.19558722,0.00017259,2]
[330511099,1719541838157,-845.57482597,0.00017259,2]
[330511100,1719541838169,-627.0786681,0.00017259,2]
[330511101,1719541838181,-873.65414328,0.00017259,2]
[330511102,1719541838193,-776.08717743,0.00017259,2]
[330511103,1719541838203,-19.18102807,0.00017259,2]
[330511104,1719541838215,-380.81897193,0.00017259,2]
[330511105,1719541838225,-626.56400245,0.00017259,2]
[330511106,1719541838243,-284.51111494,0.00017259,2]
[330511107,1719541838256,-3065.52214542,0.00017259,2]
[330511108,1719541838266,-5000.0,0.00017444,2]
[330511109,1719541838277,-5625.11593683,0.00017444,2]
[330511110,1719541838287,-940.75,0.00017534,2]
[330511111,1719541838297,-2843.24896848,0.00017807,2]
[330511112,1719541838306,-2158.23698372,0.00017925,2]
[330511113,1719541838316,-268.9555534,0.00018,2]
[330511114,1719541838327,-2204.95837318,0.00018081,2]
[330511115,1719541838337,-200.0,0.00018254,2]
[330511116,1719541838348,-1476.47,0.00018267,2]
[330511117,1719541838357,-250.0,0.00018293,2]
[330511118,1719541838368,-3598.67,0.00018374,2]
[330511119,1719541838379,-758.57,0.00018629,2]
[330511120,1719541838389,-1263.5888371,0.00018649,2]
[330511121,1719541838400,-499.99,0.00018717,2]
[330511122,1719541838410,-367.4,0.00018729,2]
[330511123,1719541838421,-1120.58,0.00018729,2]
[330511124,1719541838432,-633.53,0.00018738,2]
[330511125,1719541838442,-9180.69,0.00018738,2]
[330511126,1719541838452,-1270.37297567,0.00018759,2]
[330511127,1719541838463,-1137.584726,0.00018759,2]
[330511128,1719541838475,-755.89396225,0.00018759,2]
[330511129,1719541838486,-961.26934962,0.00018759,2]
[330511130,1719541838497,-1757.94329266,0.00018759,2]
[330511131,1719541838508,-720.62297892,0.00018759,2]
[330511132,1719541838518,-250.0,0.00018819,2]
[330511133,1719541838527,-893.67742693,0.00018835,2]
[330511134,1719541838538,-155.21812672,0.00018835,2]
[330511135,1719541838548,-1000.0,0.00018835,2]
[330511136,1719541838559,-226.99073299,0.00018835,2]
[330511137,1719541838570,-315.37665939,0.00018835,2]
[330511138,1719541838580,-255.0,0.00018864,2]
[330511140,1719541838591,-527.88878693,0.00018864,2]
[330511142,1719541838604,-380.67627992,0.00018864,2]
[330511143,1719541838615,-163.63235046,0.00018864,2]
[330511144,1719541838626,-536.64505378,0.00018864,2]
[330511145,1719541838637,-622.59689453,0.00018864,2]
[330511146,1719541838647,-160.36976779,0.00018899,2]
[330511147,1719541838658,-492.91860228,0.00018899,2]
[330511148,1719541838669,-200.98777742,0.00018899,2]
[330511149,1719541838679,-477.8375593,0.00018899,2]
[330511150,1719541838690,-155.20850166,0.00018899,2]
[330511151,1719541838699,-188.42207335,0.00018899,2]
[330511152,1719541838710,-191.01913954,0.00018899,2]
[330511153,1719541838720,-158.18002598,0.00018899,2]
[330511154,1719541838730,-155.31077959,0.00018899,2]
[330511155,1719541838740,-161.57087028,0.00018899,2]
[330511156,1719541838754,-348.03706338,0.00018899,2]
[330511157,1719541838764,-330.89881563,0.00018919,2]
[330511158,1719541838774,-155.0,0.00018919,2]
[330511159,1719541838784,-232.67603997,0.00018919,2]
[330511160,1719541838794,-547.36755233,0.00018919,2]
[330511161,1719541838804,-276.06933778,0.00018919,2]
[330511162,1719541838814,-218.4586013,0.00018919,2]
[330511163,1719541838824,-187.57211952,0.00018919,2]
[330511164,1719541838834,-163.66250419,0.00018919,2]
[330511165,1719541838846,-208.53155807,0.00018999,2]
[330511166,1719541838856,-158.31418936,0.00018999,2]
[330511167,1719541838867,-266.0,0.00019,2]
[330511168,1719541838877,-155.19063284,0.00019,2]
[330511169,1719541838887,-197.81775886,0.00019,2]
[330511170,1719541838896,-440.26075881,0.00019069,2]
[330511171,1719541838906,-242.25955593,0.00019069,2]